fUSD/lending_fUSD_20260108
["ID","MTS","AMOUNT","RATE_DAILY","PERIOD"]
[401010124,1767886243176,-500.0,0.00013698,2]
[401010126,1767886243186,-500.0,0.00013698,2]
[401010127,1767886243196,-500.0,0.00013698,2]
[401010128,1767886243205,-500.0,0.00013698,2]
[401010129,1767886243577,-500.0,0.00013698,2]
[401010130,1767886243605,-500.0,0.00013698,2]
[401010131,1767886243615,-500.0,0.00013698,2]
[401010132,1767886243624,-500.0,0.00013698,2]
[401010133,1767886243633,-500.0,0.00013698,2]
[401010134,1767886243643,-500.0,0.00013698,2]
[401010135,1767886243652,-621.72362606,0.00013698,2]
[401010136,1767886243661,-500.0,0.00013698,2]
[401010137,1767886243673,-500.0,0.00013698,2]
[401010138,1767886243684,-500.0,0.00013698,2]
[401010139,1767886243695,-500.0,0.00013698,2]
[401010140,1767886243705,-500.0,0.00013698,2]
[401010141,1767886243715,-500.0,0.00013698,2]
[401010142,1767886243724,-721.08,0.00013698,2]
[401010143,1767886243734,-500.0,0.00013698,2]
[401010144,1767886243744,-500.0,0.00013698,2]
[401010145,1767886243754,-500.0,0.00013698,2]
[401010146,1767886243763,-500.0,0.00013698,2]
[401010147,1767886243773,-937.52,0.00013698,2]
[401010148,1767886243782,-937.52,0.00013698,2]
[401010149,1767886243792,-937.52,0.00013698,2]
[401010150,1767886243801,-937.52,0.00013698,2]
[401010151,1767886243811,-500.0,0.00013698,2]
[401010152,1767886243820,-500.0,0.00013698,2]
[401010153,1767886243829,-500.0,0.00013698,2]
[401010154,1767886243839,-500.0,0.00013698,2]
[401010155,1767886243848,-500.0,0.00013698,2]
[401010156,1767886243858,-500.0,0.00013698,2]
[401010157,1767886243867,-512.68399457,0.00013698,2]
[401010158,1767886243876,-500.0,0.00013698,2]
[401010159,1767886243886,-500.0,0.00013698,2]
[401010160,1767886243895,-500.0,0.00013698,2]
[401010161,1767886243905,-500.0,0.00013698,2]
[401010162,1767886243915,-500.0,0.00013698,2]
[401010163,1767886243924,-508.0483956,0.00013698,2]
[401010164,1767886243934,-500.0,0.00013698,2]
[401010165,1767886243943,-500.0,0.00013698,2]
[401010166,1767886243953,-500.0,0.00013698,2]
[401010167,1767886243962,-500.0,0.00013698,2]
[401010168,1767886243972,-500.0,0.00013698,2]
[401010169,1767886243981,-328.76989074,0.00013698,2]
[401010170,1767886243991,-500.0,0.00013698,2]
[401010171,1767886244000,-500.0,0.00013698,2]
[401010172,1767886244010,-500.0,0.00013698,2]
[401010173,1767886244023,-500.0,0.00013698,2]
[401010174,1767886244032,-500.0,0.00013698,2]
[401010175,1767886244042,-500.0,0.00013698,2]
[401010176,1767886244052,-500.0,0.00013698,2]
[401010177,1767886244062,-500.0,0.00013698,2]
[401010178,1767886244071,-500.0,0.00013698,2]
[401010179,1767886244081,-518.56533718,0.00013698,2]
[401010180,1767886244091,-500.0,0.00013698,2]
[401010181,1767886244100,-500.0,0.00013698,2]
[401010182,1767886244111,-500.0,0.00013698,2]
[401010183,1767886244120,-500.0,0.00013698,2]
[401010184,1767886244130,-11316.28,0.000137,2]
[401010185,1767886244139,-11316.28,0.000137,2]
[401010186,1767886244150,-2868.0,0.00013753,2]
[401010187,1767886244159,-2868.0,0.00013808,2]
[401010188,1767886244168,-500.0,0.00013851,2]
[401010189,1767886244178,-500.0,0.00013862,2]
[401010190,1767886244187,-2868.0,0.00013862,2]
[401010191,1767886244197,-660.05283802,0.00013899,2]
[401010192,1767886244206,-2868.0,0.00013917,2]
[401010194,1767886244216,-2868.0,0.00013972,2]
[401010196,1767886244226,-721.08,0.00013972,2]
[401010198,1767886244236,-3244.9720349,0.00014011,2]
[401010200,1767886244246,-167.67,0.00014014,2]
[401010203,1767886244256,-2868.0,0.00014027,2]
[401010204,1767886244265,-2868.0,0.00014082,2]
[401010205,1767886244275,-2868.0,0.00014136,2]
[401010206,1767886244285,-2868.0,0.00014191,2]
[401010207,1767886244294,-2868.0,0.00014246,2]
[401010208,1767886244305,-721.08,0.00014246,2]
[401010209,1767886244315,-736.0,0.00014287,2]
[401010210,1767886244325,-2868.0,0.00014301,2]
[401010211,1767886244335,-250.0,0.00014335,2]
[401010212,1767886244345,-2868.0,0.00014355,2]
[401010213,1767886244354,-823.0,0.00014402,2]
[401010214,1767886244364,-823.0,0.00014402,2]
[401010215,1767886244373,-2888.0,0.0001441,2]
[401010216,1767886244383,-351.30808899,0.00014411,2]
[401010217,1767886244392,-3292.0,0.00014439,2]
[401010218,1767886244401,-5441.69,0.00014504,2]
[401010219,1767886244410,-9999.99,0.00014504,2]
[401010220,1767886244420,-721.08,0.0001452,2]
[401010221,1767886244429,-594.68,0.00014699,2]
[401010222,1767886244438,-151.0,0.00014738,2]
[401010223,1767886244449,-151.0,0.00014738,2]
[401010224,1767886244458,-199.19,0.00014738,2]
[401010225,1767886244467,-151.0,0.00014745,2]
[401010226,1767886244477,-151.0,0.00014745,2]
[401010227,1767886244486,-500.0,0.00014763,2]
[401010228,1767886244495,-500.51555347,0.00014763,2]
[401010229,1767886244505,-500.0,0.00014763,2]
[401010230,1767886244514,-500.0,0.00014763,2]
[401010231,1767886244523,-377.66780599,0.00014763,2]
[401010232,1767886244533,-500.0,0.00014763,2]
[401010233,1767886244542,-151.0,0.00014783,2]
[401010234,1767886244552,-151.0,0.00014783,2]
[401010235,1767886244561,-151.0,0.00014783,2]
[401010236,1767886244570,-151.0,0.00014783,2]
[401010237,1767886244579,-151.0,0.00014783,2]
[401010238,1767886244589,-3244.9720349,0.00014788,2]
[401010239,1767886244599,-721.08,0.00014794,2]
[401010240,1767886244609,-1649.29,0.00015,2]
[401010241,1767886244619,-500.0,0.00015,2]
[401010242,1767886244628,-229.07945925,0.00015036,2]
[401010243,1767886244637,-150.0,0.00015036,2]
[401010244,1767886244647,-150.0,0.00015036,2]
[401010245,1767886244656,-150.0,0.00015036,2]
[401010246,1767886244666,-500.0,0.00015036,2]
[401010247,1767886244678,-159.6010049,0.00015036,2]
[401010248,1767886244687,-150.0,0.00015036,2]
[401010249,1767886244697,-150.0,0.00015036,2]
[401010250,1767886244707,-150.0,0.00015036,2]
[401010251,1767886244718,-150.0,0.00015036,2]
[401010252,1767886244727,-500.0,0.00015036,2]
[401010253,1767886244737,-500.0,0.00015036,2]
[401010254,1767886244748,-721.08,0.00015068,2]
[401010255,1767886244757,-214.12448155,0.00015068,2]
[401010256,1767886244766,-150.0,0.00015091,2]
[401010257,1767886244775,-500.0,0.00015091,2]
[401010258,1767886244785,-150.0,0.00015091,2]
[401010259,1767886244794,-150.0,0.00015091,2]
[401010260,1767886244803,-150.0,0.00015091,2]
[401010261,1767886244812,-500.0,0.00015091,2]
[401010262,1767886244822,-150.0,0.00015091,2]
[401010263,1767886244831,-500.0,0.00015091,2]
[401010264,1767886244840,-150.0,0.00015091,2]
[401010265,1767886244849,-200.0,0.00015146,2]
[401010266,1767886244859,-500.0,0.00015146,2]
[401010267,1767886244868,-150.0,0.00015146,2]
[401010268,1767886244878,-150.0,0.00015146,2]
[401010269,1767886244887,-150.0,0.00015146,2]
[401010270,1767886244896,-500.0,0.00015146,2]
[401010271,1767886244905,-150.0,0.00015146,2]
[401010272,1767886244915,-500.0,0.00015146,2]
[401010273,1767886244924,-150.0,0.00015146,2]
[401010274,1767886244933,-500.0,0.000152,2]
[401010275,1767886244943,-161.35165335,0.000152,2]
[401010276,1767886244952,-150.0,0.000152,2]
[401010277,1767886244962,-455.28552746,0.000152,2]
[401010278,1767886244971,-217.19962447,0.000152,2]
[401010279,1767886244980,-500.0,0.000152,2]
[401010280,1767886244990,-157.21654538,0.000152,2]
[401010281,1767886244999,-521.27,0.00015255,2]
[401010282,1767886245008,-157.03274317,0.00015255,2]
[401010283,1767886245018,-171.05172936,0.00015255,2]
[401010284,1767886245027,-1000.0,0.0001531,2]
[401010285,1767886245037,-1000.0,0.0001531,2]
[401010286,1767886245046,-1000.0,0.0001531,2]
[401010287,1767886245055,-799.73155764,0.0001531,2]
[401010288,1767886245064,-721.08,0.00015342,2]
[401010289,1767886245074,-3244.9720349,0.00015566,2]
[401010290,1767886245083,-351.30808899,0.00015574,2]
[401010291,1767886245092,-721.09,0.00015616,2]
[401010292,1767886245101,-1252.0,0.00015654,2]
[401010293,1767886245111,-1152.0,0.00015828,2]
[401010294,1767886245120,-1152.0,0.00015828,2]
[401010295,1767886245130,-157.72323008,0.00015836,2]
[401010296,1767886245139,-193.73266833,0.00015858,2]
[401010297,1767886245149,-1500.0,0.00015858,2]
[401010298,1767886245158,-1500.0,0.00015858,2]
[401010299,1767886245168,-4609.0,0.00015883,2]
[401010300,1767886245177,-151.0,0.000159,2]
[401010301,1767886245186,-190.40555285,0.000159,2]
[401010302,1767886245195,-151.0,0.00015997,2]
[401010303,1767886245206,-500.0,0.00015999,2]
[401010304,1767886245217,-169297.4418947,0.00016,2]
[401010305,1767886245227,-15911.89986684,0.00016,4]
[401010306,1767886245237,-488.42577846,0.00016016,2]
[401010307,1767886245248,-356.0,0.00016082,2]
[401010308,1767886245258,-7567.0,0.00016082,2]
[401010309,1767886245268,-1000.0,0.00016096,2]
[401010310,1767886245277,-1500.0,0.00016097,2]
[401010311,1767886245287,-150.0,0.00016097,2]
[401010312,1767886245296,-446.86331983,0.00016099,2]
[401010313,1767886245306,-545429.64606577,0.000161,2]
[401010314,1767886245316,-9999.99,0.00016116,2]
[401010315,1767886245325,-180.0,0.00016128,2]
[401010316,1767886245335,-594.68,0.00016169,2]
[401010317,1767886245344,-5000.00242747,0.000162,5]
[401010318,1767886245354,-150.0,0.00016284,2]
[401010319,1767886245364,-1000.0,0.00016292,2]
[401010320,1767886245373,-1000.0,0.00016324,2]
[401010321,1767886245383,-3244.9720349,0.00016344,2]
[401010322,1767886245393,-937.52,0.00016352,2]
[401010323,1767886245403,-500.0,0.00016352,2]
[401010324,1767886245414,-516.18277591,0.00016352,2]
[401010325,1767886245424,-505.0,0.00016352,2]
[401010326,1767886245433,-1204.815,0.00016352,2]
[401010327,1767886245442,-914.0,0.00016352,2]
[401010328,1767886245453,-2436.0,0.00016352,2]
[401010329,1767886245462,-3467.0,0.00016352,2]
[401010330,1767886245472,-614.0,0.00016352,2]
[401010331,1767886245481,-1000.0,0.00016379,2]
[401010332,1767886245491,-1000.0,0.00016395,2]
[401010333,1767886245500,-1000.0,0.000164,2]
[401010334,1767886245510,-2000.0,0.00016406,2]
[401010335,1767886245519,-699.80942896,0.00016406,2]
[401010336,1767886245529,-500.0,0.00016438,2]
[401010337,1767886245538,-500.0,0.00016438,2]
[401010338,1767886245547,-500.0,0.00016438,2]
[401010339,1767886245556,-500.0,0.00016438,2]
[401010340,1767886245566,-500.0,0.00016438,2]
[401010341,1767886245575,-500.0,0.00016438,2]
[401010342,1767886245584,-500.0,0.00016438,2]
[401010343,1767886245594,-500.0,0.00016438,2]
[401010344,1767886245603,-500.0,0.00016438,2]
[401010345,1767886245612,-500.0,0.00016438,2]
[401010347,1767886245622,-500.0,0.00016438,2]
[401010349,1767886245631,-500.0,0.00016438,2]
[401010351,1767886245641,-500.0,0.00016438,2]
[401010353,1767886245650,-500.0,0.00016438,2]
[401010354,1767886245659,-500.0,0.00016438,2]
[401010356,1767886245670,-500.0,0.00016438,2]
[401010357,1767886245683,-500.0,0.00016438,2]
[401010358,1767886245692,-500.0,0.00016438,2]
[401010359,1767886245703,-500.0,0.00016438,2]
[401010360,1767886245713,-500.0,0.00016438,2]
[401010361,1767886245723,-500.0,0.00016438,2]
[401010362,1767886245733,-500.0,0.00016438,2]
[401010363,1767886245743,-500.0,0.00016438,2]
[401010364,1767886245752,-500.0,0.00016438,2]
[401010365,1767886245762,-500.0,0.00016438,2]
[401010366,1767886245771,-500.0,0.00016438,2]
[401010367,1767886245782,-500.0,0.00016438,2]
[401010368,1767886245791,-419.93331674,0.00016438,2]
[401010369,1767886245803,-500.0,0.00016438,2]
[401010370,1767886245818,-1000.0,0.00016476,2]
[401010371,1767886245840,-1000.0,0.00016486,2]
[401010372,1767886245850,-1000.0,0.00016505,2]
[401010373,1767886245859,-1000.0,0.00016523,2]
[401010374,1767886245880,-1000.0,0.00016528,2]
[401010375,1767886245896,-157.72323008,0.00016556,2]
[401010376,1767886245917,-1000.0,0.00016564,2]
[401010377,1767886245927,-1000.0,0.00016645,2]
[401010378,1767886245938,-1000.0,0.00016692,2]
[401010379,1767886245949,-165.17,0.00016712,2]
[401010380,1767886245959,-3417.6,0.00016713,2]
[401010381,1767886245969,-351.30808899,0.00016737,2]
[401010382,1767886245979,-1000.0,0.00016804,2]
[401010383,1767886245988,-1000.0,0.00016817,2]
[401010384,1767886245999,-1000.0,0.00016826,2]
[401010385,1767886246009,-3417.6,0.0001683,2]
[401010386,1767886246018,-10000.0,0.00016837,2]
[401010387,1767886246029,-1000.0,0.0001684,2]
[401010388,1767886246039,-1000.0,0.00016921,2]
[401010389,1767886246137,-1000.0,0.00016921,2]
[401010390,1767886246148,-1000.0,0.00016938,2]
[401010391,1767886246158,-3417.6,0.00016947,2]
[401010392,1767886246167,-1000.0,0.0001695,2]
[401010393,1767886246177,-2500.0,0.00016954,2]
[401010394,1767886246186,-488.42577846,0.00016958,2]
[401010395,1767886246195,-937.52,0.00016986,2]
[401010396,1767886246206,-937.52,0.00016986,2]
[401010398,1767886246216,-500.0,0.00016986,2]
[401010400,1767886246226,-500.0,0.00016986,2]
[401010402,1767886246235,-608979.25,0.00016986,2]
[401010403,1767886246244,-250.0,0.00017,2]
[401010404,1767886246255,-3032.44949746,0.00017,2]
[401010406,1767886246264,-1000.0,0.0001701,2]
[401010407,1767886246273,-1000.0,0.00017027,2]
[401010408,1767886246283,-3417.6,0.00017064,2]
[401010409,1767886246292,-150.0,0.0001707,2]
[401010410,1767886246303,-150.0,0.00017071,2]
[401010411,1767886246312,-1000.0,0.00017092,2]
[401010412,1767886246323,-570.13547988,0.00017098,2]
[401010413,1767886246333,-500.0,0.00017098,2]
[401010414,1767886246344,-418.69539905,0.00017098,2]
[401010415,1767886246358,-937.52,0.00017098,2]
[401010416,1767886246368,-500.0,0.00017098,2]
[401010417,1767886246378,-500.0,0.00017099,2]
[401010418,1767886246388,-1500.0,0.00017099,2]
[401010419,1767886246398,-500.0,0.00017099,2]
[401010420,1767886246409,-1500.0,0.00017099,2]
[401010421,1767886246418,-500.0,0.00017099,2]
[401010422,1767886246429,-1500.0,0.00017099,2]
[401010423,1767886246443,-500.0,0.00017099,2]
[401010424,1767886246456,-1500.0,0.00017099,2]
[401010425,1767886246467,-272.12855637,0.00017099,2]
[401010426,1767886246477,-1500.0,0.00017099,2]
[401010427,1767886246488,-151.0,0.00017099,2]
[401010428,1767886246498,-574.12855637,0.00017099,2]
[401010429,1767886246508,-500.0,0.00017099,2]
[401010430,1767886246518,-1500.0,0.00017099,2]
[401010431,1767886246527,-500.0,0.00017099,2]
[401010432,1767886246537,-500.0,0.00017099,2]
[401010433,1767886246547,-1500.0,0.00017099,2]
[401010434,1767886246558,-250.0,0.00017099,2]
[401010435,1767886246569,-500.0,0.00017099,2]
[401010436,1767886246578,-500.0,0.00017099,2]
[401010437,1767886246588,-1500.0,0.00017099,2]
[401010438,1767886246600,-250.0,0.00017099,2]
[401010439,1767886246612,-500.0,0.00017099,2]
[401010440,1767886246622,-500.0,0.00017099,2]
[401010441,1767886246634,-500.0,0.00017099,2]
[401010442,1767886246644,-250.0,0.00017099,2]
[401010444,1767886246655,-1238.63712889,0.00017099,2]
[401010445,1767886246666,-500.0,0.00017099,2]
[401010446,1767886246682,-260.34840278,0.00017099,2]
[401010447,1767886246696,-500.0,0.00017099,2]
[401010448,1767886246708,-250.0,0.00017099,2]
[401010449,1767886246717,-500.0,0.00017099,2]
[401010450,1767886246727,-500.0,0.00017099,2]
[401010451,1767886246737,-245.3952879,0.00017099,2]
[401010452,1767886246746,-500.0,0.00017099,2]
[401010453,1767886246756,-500.0,0.00017099,2]
[401010454,1767886246765,-500.0,0.00017099,2]
[401010456,1767886246775,-322.6107,0.00017099,2]
[401010457,1767886246784,-500.0,0.00017099,2]
[401010458,1767886246793,-500.0,0.00017099,2]
[401010459,1767886246802,-500.0,0.00017099,2]
[401010460,1767886246811,-620.0,0.00017099,2]
[401010461,1767886246821,-500.0,0.00017099,2]
[401010462,1767886246830,-1316.20759869,0.00017099,2]
[401010463,1767886246839,-721.12765535,0.00017099,2]
[401010464,1767886246848,-151.0,0.00017099,2]
[401010465,1767886246857,-578.20924308,0.00017099,2]
[401010466,1767886246867,-151.0,0.00017099,2]
[401010467,1767886246875,-162.7023203,0.00017099,2]
[401010468,1767886246885,-2000.0,0.00017099,2]
[401010469,1767886246894,-151.0,0.00017099,2]
[401010470,1767886246903,-2000.0,0.00017099,2]
[401010471,1767886246913,-2000.0,0.00017099,2]
[401010472,1767886246921,-2000.0,0.00017099,2]
[401010473,1767886246931,-2000.0,0.00017099,2]
[401010474,1767886246940,-1500.0,0.00017099,2]
[401010475,1767886246949,-988.0,0.00017099,2]
[401010476,1767886246964,-250.0,0.00017099,2]
[401010477,1767886246973,-250.0,0.00017099,2]
[401010478,1767886246982,-250.0,0.00017099,2]
[401010479,1767886246992,-250.0,0.00017099,2]
[401010480,1767886247002,-250.0,0.00017099,2]
[401010481,1767886247012,-300.0,0.00017099,2]
[401010482,1767886247021,-250.0,0.00017099,2]
[401010483,1767886247029,-250.0,0.00017099,2]
[401010484,1767886247039,-250.0,0.00017099,2]
[401010485,1767886247048,-250.0,0.00017099,2]
[401010486,1767886247058,-250.0,0.00017099,2]
[401010487,1767886247067,-250.0,0.00017099,2]
[401010488,1767886247077,-3244.9720349,0.00017122,2]
[401010489,1767886247086,-272.405,0.00017142,2]
[401010490,1767886247096,-2129.0,0.00017151,2]
[401010491,1767886247106,-1000.0,0.00017153,2]
[401010492,1767886247116,-1000.0,0.00017162,2]
[401010493,1767886247125,-1000.0,0.00017176,2]
[401010494,1767886247135,-1224.84,0.00017178,2]
[401010495,1767886247145,-465.05,0.00017178,2]
[401010496,1767886247154,-1224.84,0.00017178,2]
[401010497,1767886247163,-1224.84,0.00017178,2]
[401010498,1767886247172,-150.0,0.00017178,2]
[401010499,1767886247182,-1224.84,0.00017178,2]
[401010500,1767886247191,-150.0,0.00017178,2]
[401010501,1767886247200,-1224.84,0.00017178,2]
[401010502,1767886247213,-2420.42,0.00017178,2]
[401010503,1767886247223,-150.0,0.00017178,2]
[401010504,1767886247232,-150.0,0.00017178,2]
[401010505,1767886247242,-150.0,0.00017178,2]
[401010506,1767886247251,-150.0,0.00017178,2]
[401010507,1767886247261,-150.0,0.00017178,2]
[401010508,1767886247270,-150.0,0.00017178,2]
[401010509,1767886247280,-150.0,0.00017178,2]
[401010510,1767886247292,-300.0,0.00017178,2]
[401010511,1767886247302,-150.0,0.00017178,2]
[401010512,1767886247311,-150.0,0.00017178,2]
[401010513,1767886247321,-3417.6,0.00017181,2]
[401010514,1767886247330,-192.0,0.00017214,2]
[401010515,1767886247340,-1000.0,0.00017218,2]
[401010516,1767886247350,-1000.0,0.00017245,2]
[401010517,1767886247360,-157.72323008,0.00017276,2]
[401010518,1767886247369,-3417.6,0.00017298,2]
[401010519,1767886247379,-150.0,0.00017306,2]
[401010520,1767886247389,-500.0,0.00017313,2]
[401010521,1767886247398,-500.0,0.00017313,2]
[401010522,1767886247408,-1000.0,0.00017326,2]
[401010523,1767886247418,-150.0,0.00017326,2]
[401010524,1767886247427,-1000.0,0.00017331,2]
[401010525,1767886247446,-1000.0,0.00017371,2]
[401010526,1767886247459,-150.0,0.00017385,2]
[401010527,1767886247470,-1613.0,0.00017396,2]
[401010528,1767886247480,-344.0,0.00017396,2]
[401010529,1767886247490,-1000.0,0.000174,2]
[401010530,1767886247500,-3417.6,0.00017415,2]
[401010531,1767886247510,-6453.0,0.00017471,2]
[401010532,1767886247520,-1000.0,0.00017476,2]
[401010533,1767886247530,-150.0,0.00017478,2]
[401010534,1767886247540,-206.29912073,0.00017483,2]
[401010535,1767886247550,-150.0,0.00017495,2]
[401010536,1767886247559,-2000.0,0.000175,2]
[401010537,1767886247570,-3000.0,0.00017502,2]
[401010538,1767886247581,-1000.0,0.00017516,2]
[401010539,1767886247591,-1000.0,0.00017526,2]
[401010540,1767886247601,-1000.0,0.00017527,2]
[401010541,1767886247611,-3417.6,0.00017532,2]
[401010542,1767886247621,-150.0,0.00017537,2]
[401010543,1767886247632,-1000.0,0.00017542,2]
[401010544,1767886247642,-168.0,0.00017551,2]
[401010545,1767886247652,-1000.0,0.00017563,2]
[401010546,1767886247661,-1000.0,0.00017577,2]
[401010547,1767886247672,-1000.0,0.0001759,2]
[401010548,1767886247685,-1000.0,0.00017601,2]
[401010549,1767886247696,-1000.0,0.00017602,2]
[401010550,1767886247710,-166.04276169,0.00017608,2]
[401010551,1767886247721,-1000.0,0.00017614,2]
[401010552,1767886247731,-1000.0,0.0001762,2]
[401010553,1767886247741,-1000.0,0.00017622,2]
[401010554,1767886247753,-1000.0,0.00017623,2]
[401010555,1767886247762,-150.0,0.00017631,2]
[401010556,1767886247771,-1000.0,0.00017639,2]
[401010557,1767886247781,-594.68,0.00017639,2]
[401010558,1767886247790,-7551.57044864,0.0001764,2]
[401010559,1767886247800,-1000.0,0.00017646,2]
[401010560,1767886247809,-151.0,0.00017646,2]
[401010561,1767886247818,-595.37131296,0.00017647,2]
[401010562,1767886247832,-151.0,0.00017647,2]
[401010563,1767886247841,-151.0,0.00017647,2]
[401010564,1767886247850,-311.1,0.00017647,2]
[401010565,1767886247860,-3417.6,0.00017649,2]
[401010566,1767886247869,-1000.0,0.0001766,2]
[401010567,1767886247880,-1000.0,0.00017666,2]
[401010568,1767886247889,-150.0,0.00017672,2]
[401010569,1767886247899,-1000.0,0.00017677,2]
[401010570,1767886247908,-1000.0,0.00017682,2]
[401010571,1767886247918,-1000.0,0.00017683,2]
[401010572,1767886247928,-1000.0,0.00017689,2]
[401010573,1767886247937,-1000.0,0.00017691,2]
[401010574,1767886247947,-1000.0,0.00017691,2]
[401010575,1767886247958,-168.0,0.00017693,2]
[401010576,1767886247968,-150.0,0.00017697,2]
[401010577,1767886247977,-1000.0,0.00017698,2]
[401010578,1767886247987,-1000.0,0.000177,2]
[401010579,1767886247997,-1000.0,0.00017715,2]
[401010580,1767886248006,-1000.0,0.00017716,2]
[401010581,1767886248015,-1000.0,0.00017717,2]
[401010582,1767886248025,-1000.0,0.00017719,2]
[401010583,1767886248035,-202.37576797,0.00017723,2]
[401010584,1767886248044,-150.0,0.00017726,2]
[401010585,1767886248053,-164.77040348,0.00017726,2]
[401010586,1767886248063,-500.0,0.00017726,2]
[401010587,1767886248072,-500.0,0.00017726,2]
[401010588,1767886248081,-1000.0,0.00017734,2]
[401010589,1767886248091,-1000.0,0.00017736,2]
[401010590,1767886248101,-1000.0,0.00017737,2]
[401010591,1767886248110,-1000.0,0.00017739,2]
[401010592,1767886248121,-1000.0,0.00017741,2]
[401010593,1767886248132,-1000.0,0.00017743,2]
[401010594,1767886248143,-150.0,0.00017744,2]
[401010595,1767886248152,-1000.0,0.00017754,2]
[401010596,1767886248162,-3417.6,0.00017766,2]
[401010597,1767886248172,-25000.0,0.00017768,3]
[401010598,1767886248181,-1000.0,0.00017771,2]
[401010599,1767886248190,-1000.0,0.00017772,2]
[401010600,1767886248204,-150.0,0.00017774,2]
[401010601,1767886248214,-25000.0,0.00017777,3]
[401010602,1767886248224,-500.0,0.00017781,2]
[401010603,1767886248235,-500.0,0.00017781,2]
[401010604,1767886248245,-1000.0,0.00017785,2]
[401010605,1767886248255,-25000.0,0.00017786,3]
[401010606,1767886248265,-1000.0,0.00017786,2]
[401010607,1767886248275,-1000.0,0.00017791,2]
[401010608,1767886248285,-25000.0,0.00017794,3]
[401010609,1767886248295,-937.52,0.00017803,2]
[401010610,1767886248305,-577.20489565,0.00017803,2]
[401010611,1767886248314,-25000.0,0.00017803,3]
[401010612,1767886248324,-1000.0,0.00017809,2]
[401010613,1767886248334,-25000.0,0.00017812,3]
[401010614,1767886248344,-1000.0,0.00017817,2]
[401010615,1767886248354,-1000.0,0.00017818,2]
[401010616,1767886248364,-1000.0,0.0001782,2]
[401010617,1767886248374,-1608.57952,0.0001782,2]
[401010618,1767886248383,-1608.57953,0.0001782,2]
[401010619,1767886248397,-25000.0,0.00017821,3]
[401010620,1767886248407,-25000.0,0.00017821,3]
[401010621,1767886248417,-1000.0,0.00017823,2]
[401010622,1767886248427,-1000.0,0.00017824,2]
[401010623,1767886248437,-500.0,0.00017825,2]
[401010624,1767886248447,-500.0,0.00017825,2]
[401010625,1767886248458,-25000.0,0.0001783,3]
[401010626,1767886248467,-25000.0,0.0001783,3]
[401010627,1767886248477,-1000.0,0.0001783,2]
[401010628,1767886248487,-1608.57952,0.0001783,2]
[401010629,1767886248496,-500.0,0.00017836,2]
[401010630,1767886248506,-474.27767129,0.00017836,2]
[401010631,1767886248515,-20461.74177281,0.00017838,3]
[401010632,1767886248525,-25000.0,0.00017838,3]
[401010633,1767886248534,-202.0,0.0001784,2]
[401010634,1767886248544,-1000.0,0.00017845,2]
[401010635,1767886248553,-1000.0,0.00017847,2]
[401010636,1767886248563,-25000.0,0.00017847,3]
[401010637,1767886248572,-1000.0,0.00017851,2]
[401010638,1767886248582,-1000.0,0.00017852,2]
[401010639,1767886248592,-1000.0,0.00017854,2]
[401010640,1767886248604,-2000.0,0.00017855,2]
[401010641,1767886248613,-200.0,0.00017855,2]